Workbook

Sheet Bridge Approach Calc Info
B1: RK-20 | C1: Joint Locations (Section Thru Centerline), Subdrain Location (Detail C), Bridge End Post Details (Detail D & E), Modified Subbase and Polymer Grid Dimensions (Section Thru Centerline & Section A-A)
B2: RK-21 | C2: Plan View of Bridge Approach for Abutting PCC or Composite Pavement
B3: RK-22 | C3: Plan View of Bridge Approach for Abutting HMA Pavement
B4: RK-23 | C4: Plan View of Bridge Approach for Multi-Lane, Curbed Roadway, Modified Subbase and Polymer Grid Dimensions
B5: RF-38 | C5: Intake for Bridge End Drains, Panel Locations Shown
B6: RF-39 | C6: Scour Protection for Bridge End Drain, Panel Locations Shown
B7: RF-40 | C7: Rock Flume for Bridge End Drain, Panel Locations Shown
B9: Tab 112-6 | C9: Bridge Approach Section
B10: Tab 104-8 | C10: Bridge End Drains
B11: Tab 104-8A | C11: Scour Protection or Rock Flume for Bridge End Drain
B13: Program Last Revised: 07-03-2012
D19: Bridge Approach Calculations (ENGLISH) | Y19: Modified Subbase
D20: =CELL("filename") -> c:\pw_work\pwmain\kbell\d0797717\[06030230C01.xlsm]PrintSheets
D21: Bridge Station: | J21: EBL\NBL | L21: Lt | M21: Rt | N21: Is Abutment Moveable? | R21: Y | S21: Y/N
G22: Skew Angle | J22: 20
K23: Skew L: | L23: =DEGREES(ATAN((I24-I33)/(D27+D28+D29+D30))) -> 20 | M23: =ABS(DEGREES(ATAN((O24-N33)/(T27+T28+T29+T30)))) -> 20 | N23: deg. | Z23: =I33+(L25*(D30+D29)) -> 23.00734515 | AA23: =H24 -> 20 | AB23: =G24 -> 20 | AC23: =F24 -> 10 | AE23: Length of bridge end post (m) | AH23: Upper Lt. | AI23: Lower Lt.
F24: 10 | G24: 20 | H24: 20 | I24: =(TAN(J22*PI()/180)*(D27+D28+D29+D30))+I33 -> 31.01469031 | J24: =TAN(#REF!*PI()/180)*(D20+D21) ->  | N24: =TAN(J22*PI()/180)*(T27+T28) -> 7.279404685 | O24: =IF(N24<5,20-N24,15) -> 15 | P24: 20 | Q24: 20 | R24: 10 | AH24: =L36 -> 7 | AI24: =N36 -> 7
K25: Slope: | L25: =(I24-I33)/(D27+D28+D29+D30) -> 0.3639702343 | M25: =(N33-O24)/(T27+T28+T29+T30) -> 0.3639702343 | N25: Ft/Ft | AE25: End Depth (ft) | AF25: 1st | AG25: 2nd | AH25: 3rd | AI25: 4th | AJ25: 5th
AF26: 2 | AG26: =(2-Z23/AB35) -> 1.634846618 | AH26: =(2-(Z23+AA23)/AB35) -> 1.317423309 | AI26: 1 | AJ26: 1
D27: 8 | T27: 8
D28: 14 | T28: 12 | AF28: Avg. Depth (ft) | AG28: Area (ft2) | AH28: Volume (ft3) | AI28: Qty. (Tons)
D29: 14 | T29: 14
D30: 8 | T30: 8 | AE30: A1 | AF30: =(AF26+AG26)/2 -> 1.817423309 | AG30: =(((($I$24+$I$33)/2)+2)*(SUM($D$27:$D$30)+6))-(($N$36+$L$36)*((6/12)+2)) -> 1215.367258 | AH30: =IF(R21="y",AF30*AG30-1*(D27+D28+D29+D30+2),AF30*AG30) -> 2162.836783 | AI30: =AH30*140/2000 -> 151.3985748
AE31: A2 | AF31: =(AG26+AH26)/2 -> 1.476134964 | AG31: =((($H$24+$H$33)/2)-2)*(SUM($D$28:$D$29)+4) -> 576 | AH31: =AF31*AG31 -> 850.2537391 | AI31: =AH31*140/2000 -> 59.51776174
AE32: A3 | AF32: =(AH26+AI26)/2 -> 1.158711655 | AG32: =(((G24+G33)/2))*(SUM(D28:D29)+4) -> 640 | AH32: =AF32*AG32 -> 741.5754589 | AI32: =AH32*140/2000 -> 51.91028213
F33: 10 | G33: 20 | H33: 20 | I33: =IF(J33<5,20-J33,15) -> 15 | J33: =TAN(J22*PI()/180)*(D29+D30) -> 8.007345154 | N33: =(TAN(J22*PI()/180)*(T27+T28+T29+T30))+O24 -> 30.28674984 | O33: =TAN(#REF!*PI()/180)*(I29+I30) ->  | P33: 20 | Q33: 20 | R33: 10 | AE33: A4 | AF33: =(AI26+AJ26)/2 -> 1 | AG33: =(((F24+F33)/2))*(SUM(D28:D29)+4) -> 320 | AH33: =AF33*AG33 -> 320 | AI33: =AH33*140/2000 -> 22.4
AF34: Totals: | AG34: =SUM(AG30:AG33) -> 2751.367258 | AH34: =SUM(AH30:AH33) -> 4074.665981 | AI34: =SUM(AI30:AI33) -> 285.2266187
H35: Wing Wall and Transition Length (ft) | L35: Upper Lt. | M35: Upper Rt. | N35: Lower Lt. | O35: Lower Rt. | AA35: Slope: | AB35: =(Z23+AA23+AB23)/1 -> 63.00734515 | AC35: :1
L36: 7 | M36: 7 | N36: 7 | O36: 7
I38: Approach Quantities (Tab 112-6) | Z38: =(M25*(T27+T28))+O24 -> 22.27940469 | AA38: =P24 -> 20 | AB38: =Q24 -> 20 | AC38: =R24 -> 10 | AE38: Length of bridge end post (m) | AH38: Upper Rt. | AI38: Lower Rt.
I39: Item | L39: Left | M39: Right | N39: Total | AH39: =M36 -> 7 | AI39: =O36 -> 7
I40: Pay Length | L40: =(ABS($I$33-$I$24)*((SUM($D$29:D$30)/SUM($D$27:$D$30)))+I33)+SUM(F33:H33) -> 73.00734515 | M40: =(ABS($N$33-$O$24)*((SUM($T$27:T$28)/SUM($T$27:$T$30)))+O24)+SUM(P24:R24) -> 72.27940469 | N40: =L40+M40 -> 145.2867498 | O40: ft | AE40: End Depth (ft) | AF40: 1st | AG40: 2nd | AH40: 3rd | AI40: 4th | AJ40: 5th
I41: Double Reinforced Approach | L41: =(((($I$24+$I$33)/2)*(SUM($D$27:$D$30)+2))-(($N$36+$L$36)*((6/12)+2)))/9 -> 113.7042086 | M41: =(((($O$24+$N$33)/2)*((SUM($T$27:$T$30)+2))-(($O$36+$M$36)*((6/12)+2))))/9 -> 106.8120552 | N41: 220.5162637 | O41: yd2 | AF41: 2 | AG41: =(2-Z38/AB51) -> 1.642266897 | AH41: =(2-(Z38+AA38)/AB51) -> 1.321133449 | AI41: 1 | AJ41: 1
I42: Single Reinforced Approach | L42: =((H24+H33)/2)*(D28+D29)/9 -> 62.22222222 | M42: =((P24+P33)/2)*(T28+T29)/9 -> 57.77777778 | N42: 120 | O42: yd2
I43: Non-Reinforced Approach | L43: =((G33+F33+G24+F24)/2)*(D28+D29)/9 -> 93.33333333 | M43: =((Q24+R24+Q33+R33)/2)*(T28+T29)/9 -> 86.66666667 | N43: 180 | O43: yd2 | AF43: Avg. Depth (ft) | AG43: Area (ft2) | AH43: Volume (ft3) | AI43: Qty. (Tons)
I44: Polymer Grid | L44: =SUM(AG30:AG33)/9 -> 305.7074731 | M44: =SUM(AG45:AG48)/9 -> 287.542444 | N44: 593.2499171 | O44: yd2
I45: Modified Subbase | L45: =AI34 -> 285.2266187 | M45: =AI49 -> 269.0033098 | N45: 554.2299285 | O45: Tons | AE45: A1 | AF45: =(AF41+AG41)/2 -> 1.821133449 | AG45: =(((($O$24+$N$33)/2)+2))*((SUM($T$27:$T$30)+6))-(($O$36+$M$36)*((6/12)+2)) -> 1147.881996 | AH45: =IF(R21="y",AF45*AG45-1*(T27+T28+T29+T30+2),AF45*AG45) -> 2046.446298 | AI45: =AH45*140/2000 -> 143.2512409
I46: Pannel Quantities: | AE46: A2 | AF46: =(AG41+AH41)/2 -> 1.481700173 | AG46: =(((P24+P33)/2)-2)*(SUM(T28:T29)+4) -> 540 | AH46: =AF46*AG46 -> 800.1180933 | AI46: =AH46*140/2000 -> 56.00826653
I47: Paved Shoulder | L47: =+I65 -> 44.44444444 | M47: =R65 -> 44.44444444 | N47: =L47+M47 -> 88.88888889 | O47: yd2 | R47: - User Input | AE47: A3 | AF47: =(AH41+AI41)/2 -> 1.160566724 | AG47: =((Q24+Q33)/2)*(SUM(T28:T29)+4) -> 600 | AH47: =AF47*AG47 -> 696.3400346 | AI47: =AH47*140/2000 -> 48.74380242
I48: Modified Subbase | L48: =G65 -> 41.33177898 | M48: =P65 -> 41.48760484 | N48: =L48+M48 -> 82.81938382 | O48: Tons | R48: - Calculation (Locked) | AE48: A4 | AF48: =(AI41+AJ41)/2 -> 1 | AG48: =((R24+R33)/2)*(SUM(T28:T29)+4) -> 300 | AH48: =AF48*AG48 -> 300 | AI48: =AH48*140/2000 -> 21
D49: Tips for Use: | I49: Polymer Grid | L49: =I65 -> 44.44444444 | M49: =R65 -> 44.44444444 | N49: =L49+M49 -> 88.88888889 | O49: yd2 | AF49: Totals: | AG49: =SUM(AG45:AG48) -> 2587.881996 | AH49: =SUM(AH45:AH48) -> 3842.904426 | AI49: =SUM(AI45:AI48) -> 269.0033098
D50: 1) Fill in dimensions in feet. | R50: - Non-Reinforced Section
D51: 2) Calculated quantities include 4" sloped curb. | AA51: Slope: | AB51: =(Z38+AA38+AB38)/1 -> 62.27940469 | AC51: :1
D52: 3) All values based on Standard Road Plan RK-20(1-3) | R52: - Single Reinforced Section
R54: - Double Reinforced Section
D57: Paved Shoulder Panels for Sod Flume or Bridge End Drain (See Standard Road Plans RF-38, RF-39, & RF-40 as well as Tabs 104-8 and 104-8A)
E58: Lt. Side | K58: 1Not a Bid Item | N58: Rt. Side
E59: Req'd Panel | F59: Y/N | G59: 1Modified Subbase(Ton) | I59: 1Polymer Grid (yd2) | N59: Req'd Panel | O59: Y/N | P59: 1Modified Subbase(Ton) | R59: 1Polymer Grid (Yd2)
E61: A | F61: Y | G61: =I61*AF31*9*140/2000 -> 20.66588949 | I61: =IF($F$61="y",$H$24*($D$27+2),0)/9 -> 22.22222222 | N61: A | O61: Y | P61: =R61*AF46*9*140/2000 -> 20.74380242 | R61: =IF($O$61="y",$P$33*($T$30+2),0)/9 -> 22.22222222
E62: B | F62: Y | G62: =I62*AF31*9*140/2000 -> 20.66588949 | I62: =IF($F$62="y",$H$33*($D$30+2),0)/9 -> 22.22222222 | N62: B | O62: Y | P62: =R62*AF46*9*140/2000 -> 20.74380242 | R62: =IF($O$62="y",$P$24*($T$27+2),0)/9 -> 22.22222222
E63: C | G63: =I63*AF32*9*140/2000 -> 0 | I63: =IF($F$63="y",($D$30+2)*$G$33,0)/9 -> 0 | N63: C | P63: =R63*AF47*9*140/2000 -> 0 | R63: =IF($O$63="y",$Q$24*($T$27+2),0)/9 -> 0
E64: D | G64: =I64*AF32*9*140/2000 -> 0 | I64: =IF($F$64="y",$G$24*(2+$D$27),0)/9 -> 0 | N64: D | P64: =R64*AF47*9*140/2000 -> 0 | R64: =IF($O$64="y",$Q$33*($T$30+2),0)/9 -> 0
E65: Total: | G65: =SUM(G61:H64) -> 41.33177898 | I65: =SUM(I61:J64) -> 44.44444444 | N65: Total: | P65: =SUM(P61:Q64) -> 41.48760484 | R65: =SUM(R61:S64) -> 44.44444444
E66: B+C= | G66: =+G62+G63 -> 20.66588949 | I66: =+I62+I63 -> 22.22222222 | N66: B+C= | P66: =+P62+P63 -> 20.74380242 | R66: =+R62+R63 -> 22.22222222
E67: A+D= | G67: =+G61+G64 -> 20.66588949 | I67: =+I61+I64 -> 22.22222222 | N67: A+D= | P67: =+P61+P64 -> 20.74380242 | R67: =+R61+R64 -> 22.22222222
K68: Panel | L68: Area (yd2) | AD68: Subdrain Outlet Location | AG68: 4" Subdrain | AI68: Porous Backfill
L69: Lt. Side | M69: Rt. Side | Z69: Begin Bridge Station | AB69: =49316.5-1.5 -> 49315 | AD69: =+AB69-(ABS(I33-I24)*(SUM(D29:D30)/SUM(D27:D30))+I33)-SUM(G33:H33) -> 49251.99265 | AG69: =ROUNDUP(SUM(D28:D30)+(2.75*6)+((3/12)*6)+(IF($F$61="y",+D27,0)+10),0) -> 72 | AH69: =ROUNDUP(SUM(#REF!)+(2.75*6)+((3/12)*6)+10,0) ->  | AI69: =ROUNDUP((2.667*AG69)*120/2000,0) -> 12
K70: A | L70: =IF($F$61="y",($H$24*($D$27+2))/9,0) -> 22.22222222 | M70: =IF($O$61="y",(($P$33)*($T$30+2)/9),0) -> 22.22222222 | Z70: End Bridge Station | AB70: =49446.5+1.5 -> 49448 | AD70: =+AB70+(ABS(N33-O24)*(SUM(T27:T28)/SUM(T27:T30))+O24)+SUM(P24:Q24) -> 49510.2794 | AG70: =ROUNDUP(SUM(T28:T30)+(2.75*6)+((3/12)*6)+(IF($O$61="y",+T27,0)+10),0) -> 70 | AH70: =ROUNDUP(SUM(#REF!)+(2.75*6)+((3/12)*6)+10,0) ->  | AI70: =ROUNDUP((2.667*AG70)*120/2000,0) -> 12
H71: B+C= | I71: =+L71+L72 -> 22.22222222 | K71: B | L71: =IF($F$62="y",($H$33*($D$30+2))/9,0) -> 22.22222222 | M71: =IF($O$62="y",($P$24*($T$27+2)/9),0) -> 22.22222222 | N71: B+C= | O71: =+M71+M72 -> 22.22222222
H72: A+D= | I72: =+L70+L73 -> 22.22222222 | K72: C | L72: =IF($F$63="y",($D$30*($G$33+2)/9),0) -> 0 | M72: =IF($O$63="y",($Q$24*($T$27+2)/9),0) -> 0 | N72: A+D= | O72: =+M70+M73 -> 22.22222222 | Z72: Longitudinal Grooving
K73: D | L73: =IF($F$64="y",($G$24*($D$27+2)),0) -> 0 | M73: =IF($O$64="y",($Q$33*($T$30+2)/9),0) -> 0 | Z73: Begin Bridge Approach | AB73: =SUM(L41:L43) -> 269.2597641
K74: Total: | L74: =SUM(L70:L73) -> 44.44444444 | M74: =SUM(M70:M73) -> 44.44444444 | Z74: Bridge | AD74: Quantity generated by Bridge Design and shown on TS&L. Face-to-Face of Backwall or Face-to-Face of Paving Notch (equivalent).
Z75: End Bridge Approach | AB75: =SUM(M41:M43) -> 251.2564996
Z76: Total | AB76: =SUM(AB73:AC75) -> 520.5162637

Sheet Rt. Skewed Bridge
A1: Bridge Approach Calculations (ENGLISH) | R1: Modified Subbase
A2: =CELL("filename") -> c:\pw_work\pwmain\kbell\d0797717\[06030230C01.xlsm]PrintSheets
A3: Bridge Station: | C3: 24147575.72 | G3: SB/NB | I3: Lt | J3: Rt | K3: Is Abutment Moveable? | O3: n | P3: Y/N
D4: Skew Angle | G4: 0
H5: Skew : | I5: =DEGREES(ATAN((F6-F15)/(A9+A10+A11+A12))) -> 0 | J5: =DEGREES(ATAN((K6-L15)/(Q9+Q10+Q11+Q12))) -> 0 | K5: Deg | S5: =F15+(I7*(A12+A11)) -> 20 | T5: =E6 -> 20 | U5: =D6 -> 20 | V5: =C6 -> 10 | X5: Length of bridge end post (ft) | AA5: Upper Lt. | AB5: Lower Lt.
C6: 10 | D6: 20 | E6: 20 | F6: =IF(G6<5,20-G6,15) -> 20 | G6: =TAN(G4*PI()/180)*(A9+A10) -> 0 | K6: =(TAN(G4*PI()/180)*(Q9+Q10+Q11+Q12))+L15 -> 20 | L6: =TAN(#REF!*PI()/180)*(F2+F3) ->  | M6: 20 | N6: 20 | O6: 10 | AA6: =I18 -> 7 | AB6: =K18 -> 7
H7: Slope: | I7: =(F6-F15)/(A9+A10+A11+A12) -> 0 | J7: =(K6-L15)/(Q9+Q10+Q11+Q12) -> 0 | K7: Ft/Ft | X7: End Depth (ft) | Y7: 1st | Z7: 2nd | AA7: 3rd | AB7: 4th | AC7: 5th
Y8: 2 | Z8: =(2-S5/U17) -> 1.666666667 | AA8: =(2-(S5+T5)/U17) -> 1.333333333 | AB8: 1 | AC8: 1
A9: 9.5833 | Q9: 8
A10: 14 | Q10: 14 | Y10: Avg. Depth (ft) | Z10: Area (ft2) | AA10: Volume (ft3) | AB10: Qty. (Tons)
A11: 14 | Q11: 14
A12: 9.5833 | Q12: 8 | X12: A1 | Y12: =(Y8+Z8)/2 -> 1.833333333 | Z12: =(((($F$6+$F$15)/2))*(SUM($A$9:$A$12)+6))-IF(I18<F6+2,(($I$18)*(3)),(F6+2)*3)-IF(K18<F15+2,K18*3,(F15+2)*3) -> 1021.332 | AA12: =IF(O3="y",Y12*Z12-1*(A9+A10+A11+A12+2),Y12*Z12) -> 1872.442 | AB12: =AA12*140/2000 -> 131.07094
X13: A2 | Y13: =(Z8+AA8)/2 -> 1.5 | Z13: =((($E$6+$E$15)/2)-2)*(SUM($A$10:$A$11)+4) -> 576 | AA13: =Y13*Z13 -> 864 | AB13: =AA13*140/2000 -> 60.48
X14: A3 | Y14: =(AA8+AB8)/2 -> 1.166666667 | Z14: =(((D6+D15)/2))*(SUM(A10:A11)+4) -> 640 | AA14: =Y14*Z14 -> 746.6666667 | AB14: =AA14*140/2000 -> 52.26666667
C15: 10 | D15: 20 | E15: 20 | F15: =(TAN(G4*PI()/180)*(A9+A10+A11+A12))+F6 -> 20 | K15: =TAN(G4*PI()/180)*(Q11+Q12) -> 0 | L15: =IF(K15<5,20-K15,15) -> 20 | M15: 20 | N15: 20 | O15: 10 | X15: A4 | Y15: =(AB8+AC8)/2 -> 1 | Z15: =(((C6+C15)/2))*(SUM(A10:A11)+4) -> 320 | AA15: =Y15*Z15 -> 320 | AB15: =AA15*140/2000 -> 22.4
Y16: Totals: | Z16: =SUM(Z12:Z15) -> 2557.332 | AA16: =SUM(AA12:AA15) -> 3803.108667 | AB16: =SUM(AB12:AB15) -> 266.2176067
E17: Wing Wall and End Post Length (ft) | I17: Upper Lt. | J17: Upper Rt. | K17: Lower Lt. | L17: Lower Rt. | T17: Slope: | U17: =(S5+T5+U5)/1 -> 60 | V17: :1
I18: 7 | J18: 7 | K18: 7 | L18: 7
F20: Approach Quantities (Tab 112-6) | S20: =(J7*(Q12+Q11))+L15 -> 20 | T20: =M6 -> 20 | U20: =N6 -> 20 | V20: =O6 -> 10 | X20: Length of bridge end post (m) | AA20: Upper Rt. | AB20: Lower Rt.
F21: Item | I21: Left | J21: Right | K21: Total | AA21: =J18 -> 7 | AB21: =L18 -> 7
F22: Pay Length | I22: =(ABS($F$15-$F$6)*((SUM($A$9:A$10)/SUM($A$9:$A$12)))+F6)+SUM(C15:E15) -> 70 | J22: =(ABS($L$15-$K$6)*((SUM($Q$11:Q$12)/SUM($Q$9:$Q$12)))+L15)+SUM(M6:O6) -> 70 | K22: =I22+J22 -> 140 | L22: ft | X22: End Depth (ft) | Y22: 1st | Z22: 2nd | AA22: 3rd | AB22: 4th | AC22: 5th
F23: Double Reinforced Approach | I23: =(((($F$6+$F$15)/2)*(SUM($A$9:$A$12)+2))-IF(I18<F6,I18*1,F6*1)-IF(K18<F15,K18*1,F15*1))/9 -> 107.7035556 | J23: =(((($K$6+$L$15)/2)*((SUM($Q$9:$Q$12)+2))-IF(J18<K6,J18*1,K6*1)-IF(L18<L15,L18*1,L15*1)))/9 -> 100.6666667 | K23: 208.3702222 | L23: yd2 | Y23: 2 | Z23: =(2-S20/U33) -> 1.666666667 | AA23: =(2-(S20+T20)/U33) -> 1.333333333 | AB23: 1 | AC23: 1
F24: Single Reinforced Approach | I24: =((E6+E15)/2)*(A10+A11)/9 -> 62.22222222 | J24: =((M6+M15)/2)*(Q10+Q11)/9 -> 62.22222222 | K24: 124.4444444 | L24: yd2
F25: Non-Reinforced Approach | I25: =((D15+C15+D6+C6)/2)*(A10+A11)/9 -> 93.33333333 | J25: =((N6+O6+N15+O15)/2)*(Q10+Q11)/9 -> 93.33333333 | K25: 186.6666667 | L25: yd2 | Y25: Avg. Depth (ft) | Z25: Area (ft2) | AA25: Volume (ft3) | AB25: Qty. (Tons)
F26: Polymer Grid | I26: =SUM(Z12:Z15)/9 -> 284.148 | J26: =SUM(Z27:Z30)/9 -> 288.2222222 | K26: 572.3702222 | L26: yd2
F27: Modified Subbase | I27: =AB16 -> 266.2176067 | J27: =AB31 -> 270.9233333 | K27: 537.14094 | L27: Tons | X27: A1 | Y27: =(Y23+Z23)/2 -> 1.833333333 | Z27: =(((($K$6+$L$15)/2)+2))*((SUM($Q$9:$Q$12)+6))-IF(J18<K6+2,J18*3,(K6+2)*3)-IF(L18<L15+2,L18*3,(L15+2)*3) -> 1058 | AA27: =IF(O3="y",Y27*Z27-1*(Q9+Q10+Q11+Q12+2),Y27*Z27) -> 1939.666667 | AB27: =AA27*140/2000 -> 135.7766667
F28: Pannel Quantities: | X28: A2 | Y28: =(Z23+AA23)/2 -> 1.5 | Z28: =(((M6+M15)/2)-2)*(SUM(Q10:Q11)+4) -> 576 | AA28: =Y28*Z28 -> 864 | AB28: =AA28*140/2000 -> 60.48
F29: Paved Shoulder | I29: =+F47 -> 0 | J29: =O47 -> 80 | K29: =I29+J29 -> 80 | L29: yd2 | O29: - User Input | X29: A3 | Y29: =(AA23+AB23)/2 -> 1.166666667 | Z29: =((N6+N15)/2)*(SUM(Q10:Q11)+4) -> 640 | AA29: =Y29*Z29 -> 746.6666667 | AB29: =AA29*140/2000 -> 52.26666667
F30: Modified Subbase | I30: =D47 -> 0 | J30: =M47 -> 67.2 | K30: =I30+J30 -> 67.2 | L30: Tons | O30: - Calculation (Locked) | X30: A4 | Y30: =(AB23+AC23)/2 -> 1 | Z30: =((O6+O15)/2)*(SUM(Q10:Q11)+4) -> 320 | AA30: =Y30*Z30 -> 320 | AB30: =AA30*140/2000 -> 22.4
A31: Tips for Use: | F31: Polymer Grid | I31: =F47 -> 0 | J31: =O47 -> 80 | K31: =I31+J31 -> 80 | L31: yd2 | Y31: Totals: | Z31: =SUM(Z27:Z30) -> 2594 | AA31: =SUM(AA27:AA30) -> 3870.333333 | AB31: =SUM(AB27:AB30) -> 270.9233333
A32: 1) Fill in dimensions in feet. | O32: - Non-Reinforced Section
A33: 2) Calculated quantities include 4" sloped curb. | T33: Slope: | U33: =(S20+T20+U20)/1 -> 60 | V33: :1
A34: 3) All values based on Standard Road Plan RK-20(1-3) | O34: - Single Reinforced Section
O36: - Double Reinforced Section
A39: Paved Shoulder Panels for Sod Flume or Bridge End Drain (See Standard Road Plans RF-38, RF-39, & RF-40 as well as Tabs 104-8 and 104-8A)
B40: Lt. Side | H40: 1Not a Bid Item | K40: Rt. Side
B41: Req'd Panel | C41: Y/N | D41: 1Modified Subbase(Ton) | F41: 1Polymer Grid (yd2) | K41: Req'd Panel | L41: Y/N | M41: 1Modified Subbase(Ton) | O41: 1Polymer Grid (Yd2)
B43: A | C43: N | D43: =F43*Y13*9*140/2000 -> 0 | F43: =IF($C$43="y",(E15)*(A12+3-2)-IF(K18<F15+2,0,IF(K18<SUM(E15:G15),(K18-(F15+2))*3,E15*3)),0)/9 -> 0 | K43: A | L43: Y | M43: =O43*Y28*9*140/2000 -> 18.9 | O43: =IF($L$43="y",M6*(Q9+3-2)-IF(J18<K6+2,0,IF(J18<(K6+M6),(J18-(K6+2))*3,M6*3)),0)/9 -> 20
B44: B | C44: N | D44: =F44*Y13*9*140/2000 -> 0 | F44: =IF($C$44="y",(E6)*(A9+3-2)-IF(I18<F6+2,0,IF(I18<(SUM(E6:F6)+2),(I18-(F6+2))*3,E6*3)),0)/9 -> 0 | K44: B | L44: Y | M44: =O44*Y28*9*140/2000 -> 18.9 | O44: =IF($L$44="y",M15*(Q12+3-2)-IF(L18<L15+2,0,IF(L18<SUM(L15:M15),(L18-(L15+2))*3,M15*3)),0)/9 -> 20
B45: C | C45: N | D45: =F45*Y14*9*140/2000 -> 0 | F45: =IF($C$45="y",(A9+3-2)*D6-IF(I18<SUM(E6:F6)+2,0,(I18-(SUM(E6:F6)+2))*3),0)/9 -> 0 | K45: C | L45: Y | M45: =O45*Y29*9*140/2000 -> 14.7 | O45: =IF($L$45="y",N15*(Q12+1)-IF(L18<SUM(L15:M15)+2,0,(L18-(SUM(L15:M15)+2))*3),0)/9 -> 20
B46: D | C46: N | D46: =F46*Y14*9*140/2000 -> 0 | F46: =IF($C$46="y",D15*(A12+3-2)-IF(K18<SUM(E15:F15)+2,0,(K18-(SUM(E15:F15)+2))*3),0)/9 -> 0 | K46: D | L46: Y | M46: =O46*Y29*9*140/2000 -> 14.7 | O46: =IF($L$46="y",N6*(Q9+3-2)-IF(J18<(M6+K6)+2,0,(J18-(SUM(K6:M6)+2))*3),0)/9 -> 20
B47: Total: | D47: =SUM(D43:E46) -> 0 | F47: =SUM(F43:G46) -> 0 | K47: Total: | M47: =SUM(M43:N46) -> 67.2 | O47: =SUM(O43:P46) -> 80
B48: B+C= | D48: =+D44+D45 -> 0 | F48: =+F44+F45 -> 0 | K48: B+C= | M48: =+M44+M45 -> 33.6 | O48: =+O44+O45 -> 40
B49: A+D= | D49: =+D43+D46 -> 0 | F49: =+F43+F46 -> 0 | K49: A+D= | M49: =+M43+M46 -> 33.6 | O49: =+O43+O46 -> 40
H50: Panel | I50: Area (yd2) | S50: Begin Bridge Approach Station | U50: =U51-I22 -> 24147375.72 | W50: Subdrain Outlet Location | Z50: 4" Subdrain | AB50: Porous Backfill
I51: Lt. Side | J51: Rt. Side | S51: Begin Bridge Station | U51: 24147445.72 | W51: 24147370 | Z51: =ROUNDUP(SUM(A10:A12)+(2.75*6)+((3/12)*6)+(IF($C$43="y",+A9,0)+10)+16,0) -> 82 | AA51: =ROUNDUP(SUM(#REF!)+(2.75*6)+((3/12)*6)+10,0) ->  | AB51: =ROUNDUP((2.667*Z51)*120/2000,0) -> 14
H52: A | I52: =IF($C$43="y",((E15*(A12+1)-IF(K18<F15,0,IF(K18<(E15+F15),(K18-F15)*1,E15*1)))/9),0) -> 0 | J52: =IF(L43="y",((M6*(Q9+1)-IF(J18<K6,0,IF(J18<(M6+K6),(J18-K6)*1,M6*1)))/9),0) -> 20 | S52: End Bridge Station | U52: 24147705.72 | W52: =+U52+(ABS(L15-K6)*(SUM(Q11:Q12)/SUM(Q9:Q12))+L15)+SUM(M6:N6) -> 24147765.72 | Z52: =ROUNDUP(SUM(Q10:Q12)+(2.75*6)+((3/12)*6)+(IF($L$43="y",+Q9,0)+10),0) -> 72 | AA52: =ROUNDUP(SUM(#REF!)+(2.75*6)+((3/12)*6)+10,0) ->  | AB52: =ROUNDUP((2.667*Z52)*120/2000,0) -> 12
E53: B+C= | F53: =+I53+I54 -> 0 | H53: B | I53: =IF($C$44="y",(E6*(A9+1)-IF(I18<F6,0,IF(I18<(E6+F6),(I18-F6)*1,E6*1)))/9,0) -> 0 | J53: =IF(L44="y",(M15*(Q12+1)-IF(L18<L15,0,IF(L18<(M15+L15),(L18-L15)*1,M15*1)))/9,0) -> 20 | K53: B+C= | L53: =+J53+J54 -> 40 | S53: End Bridge Approach Station | U53: =U52+J22 -> 24147775.72
E54: A+D= | F54: =+I52+I55 -> 0 | H54: C | I54: =IF($C$45="y",(((A9+1)*D6-IF(I18<(E6+F6),0,I18-SUM(E6:F6)))/9),0) -> 0 | J54: =IF(L45="y",(((Q12+1)*N15-IF(L18<(M15+L15),0,L18-SUM(L15:M15)))/9),0) -> 20 | K54: A+D= | L54: =+J52+J55 -> 40
H55: D | I55: =IF($C$46="y",(D15*(1+A12)-IF(I18<(E15+F15),0,I18-(E15+F15)))/9,0) -> 0 | J55: =IF(L46="y",(N6*(1+Q9)-IF(J18<(M6+K6),0,J18-(M6+K6)))/9,0) -> 20 | S55: Longitudinal Grooving
H56: Total: | I56: =SUM(I52:I55) -> 0 | J56: =SUM(J52:J55) -> 80 | S56: Begin Bridge Approach | U56: =SUM(I23:I25) -> 263.2591111
S57: Bridge | U57: =((U52-U51)*(Q9+Q10+Q11+Q12))/9 -> 1271.111111 | W57: Quantity generated by Bridge Design and shown on TS&L. Face-to-Face of Backwall or Face-to-Face of Paving Notch (equivalent).
S58: End Bridge Approach | U58: =SUM(J23:J25) -> 256.2222222
S59: Total | U59: =SUM(U56:V58) -> 1790.592444

Sheet Lt. Skewed Bridge
A1: Bridge Approach Calculations (ENGLISH) | R1: Modified Subbase
A2: =CELL("filename") -> c:\pw_work\pwmain\kbell\d0797717\[06030230C01.xlsm]PrintSheets
A3: Bridge Station: | G3: EBL\NBL | I3: Lt | J3: Rt | K3: Is Abutment Moveable? | O3: Y | P3: Y/N
D4: Skew Angle | G4: 0
H5: Skew L: | I5: =DEGREES(ATAN((F6-F15)/(A9+A10+A11+A12))) -> 0 | J5: =ABS(DEGREES(ATAN((L6-K15)/(Q9+Q10+Q11+Q12)))) -> 0 | K5: deg. | S5: =F15+(I7*(A12+A11)) -> 20 | T5: =E6 -> 20 | U5: =D6 -> 20 | V5: =C6 -> 10 | X5: Length of bridge end post (m) | AA5: Upper Lt. | AB5: Lower Lt.
C6: 10 | D6: 20 | E6: 20 | F6: =(TAN(G4*PI()/180)*(A9+A10+A11+A12))+F15 -> 20 | G6: =TAN(#REF!*PI()/180)*(A2+A3) ->  | K6: =TAN(G4*PI()/180)*(Q9+Q10) -> 0 | L6: =IF(K6<5,20-K6,15) -> 20 | M6: 20 | N6: 20 | O6: 10 | AA6: =I18 -> 7 | AB6: =K18 -> 7
H7: Slope: | I7: =(F6-F15)/(A9+A10+A11+A12) -> 0 | J7: =(K15-L6)/(Q9+Q10+Q11+Q12) -> 0 | K7: Ft/Ft | X7: End Depth (ft) | Y7: 1st | Z7: 2nd | AA7: 3rd | AB7: 4th | AC7: 5th
Y8: 2 | Z8: =(2-S5/U17) -> 1.666666667 | AA8: =(2-(S5+T5)/U17) -> 1.333333333 | AB8: 1 | AC8: 1
A9: 6 | Q9: 6
A10: 12 | Q10: 12 | Y10: Avg. Depth (ft) | Z10: Area (ft2) | AA10: Volume (ft3) | AB10: Qty. (Tons)
A11: 14 | Q11: 14
A12: 8 | Q12: 8 | X12: A1 | Y12: =(Y8+Z8)/2 -> 1.833333333 | Z12: =(((($F$6+$F$15)/2+2))*(SUM($A$9:$A$12)+6))-IF(I18<F6+2,(($I$18)*(3)),(F6+2)*3)-IF(K18<F15+2,K18*3,(F15+2)*3) -> 970 | AA12: =IF(O3="y",Y12*Z12-1*(A9+A10+A11+A12+2),Y12*Z12) -> 1736.333333 | AB12: =AA12*140/2000 -> 121.5433333
X13: A2 | Y13: =(Z8+AA8)/2 -> 1.5 | Z13: =((($E$6+$E$15)/2)-2)*(SUM($A$10:$A$11)+4) -> 540 | AA13: =Y13*Z13 -> 810 | AB13: =AA13*140/2000 -> 56.7
X14: A3 | Y14: =(AA8+AB8)/2 -> 1.166666667 | Z14: =(((D6+D15)/2))*(SUM(A10:A11)+4) -> 600 | AA14: =Y14*Z14 -> 700 | AB14: =AA14*140/2000 -> 49
C15: 10 | D15: 20 | E15: 20 | F15: =IF(G15<5,20-G15,15) -> 20 | G15: =TAN(G4*PI()/180)*(A11+A12) -> 0 | K15: =(TAN(G4*PI()/180)*(Q9+Q10+Q11+Q12))+L6 -> 20 | L15: =TAN(#REF!*PI()/180)*(F11+F12) ->  | M15: 20 | N15: 20 | O15: 10 | X15: A4 | Y15: =(AB8+AC8)/2 -> 1 | Z15: =(((C6+C15)/2))*(SUM(A10:A11)+4) -> 300 | AA15: =Y15*Z15 -> 300 | AB15: =AA15*140/2000 -> 21
Y16: Totals: | Z16: =SUM(Z12:Z15) -> 2410 | AA16: =SUM(AA12:AA15) -> 3546.333333 | AB16: =SUM(AB12:AB15) -> 248.2433333
E17: Wing Wall and End Post Length (ft) | I17: Upper Lt. | J17: Upper Rt. | K17: Lower Lt. | L17: Lower Rt. | T17: Slope: | U17: =(S5+T5+U5)/1 -> 60 | V17: :1
I18: 7 | J18: 7 | K18: 7 | L18: 7
F20: Approach Quantities (Tab 112-6) | S20: =(J7*(Q9+Q10))+L6 -> 20 | T20: =M6 -> 20 | U20: =N6 -> 20 | V20: =O6 -> 10 | X20: Length of bridge end post (m) | AA20: Upper Rt. | AB20: Lower Rt.
F21: Item | I21: Left | J21: Right | K21: Total | AA21: =J18 -> 7 | AB21: =L18 -> 7
F22: Pay Length | I22: =(ABS($F$15-$F$6)*((SUM($A$9:A$10)/SUM($A$9:$A$12)))+F15)+SUM(C15:E15) -> 70 | J22: =(ABS(K15-L6)*((SUM($Q$11:Q$12)/SUM($Q$9:$Q$12)))+L6)+SUM(M6:O6) -> 70 | K22: =I22+J22 -> 140 | L22: ft | X22: End Depth (ft) | Y22: 1st | Z22: 2nd | AA22: 3rd | AB22: 4th | AC22: 5th
F23: Double Reinforced Approach | I23: =(((($F$6+$F$15)/2)*(SUM($A$9:$A$12)+2))-IF(I18<F6,I18*1,F6*1)-IF(K18<F15,K18*1,F15*1))/9 -> 91.77777778 | J23: =((((L6+K15)/2)*((SUM($Q$9:$Q$12)+2))-IF(J18<L6,J18*1,L6*1)-IF(L18<K15,L18*1,K15*1)))/9 -> 91.77777778 | K23: 183.5555556 | L23: yd2 | Y23: 2 | Z23: =(2-S20/U33) -> 1.666666667 | AA23: =(2-(S20+T20)/U33) -> 1.333333333 | AB23: 1 | AC23: 1
F24: Single Reinforced Approach | I24: =((E6+E15)/2)*(A10+A11)/9 -> 57.77777778 | J24: =((M6+M15)/2)*(Q10+Q11)/9 -> 57.77777778 | K24: 115.5555556 | L24: yd2
F25: Non-Reinforced Approach | I25: =((D15+C15+D6+C6)/2)*(A10+A11)/9 -> 86.66666667 | J25: =((N6+O6+N15+O15)/2)*(Q10+Q11)/9 -> 86.66666667 | K25: 173.3333333 | L25: yd2 | Y25: Avg. Depth (ft) | Z25: Area (ft2) | AA25: Volume (ft3) | AB25: Qty. (Tons)
F26: Polymer Grid | I26: =SUM(Z12:Z15)/9 -> 267.7777778 | J26: =SUM(Z27:Z30)/9 -> 267.7777778 | K26: 535.5555556 | L26: yd2
F27: Modified Subbase | I27: =AB16 -> 248.2433333 | J27: =AB31 -> 248.2433333 | K27: 496.4866667 | L27: Tons | X27: A1 | Y27: =(Y23+Z23)/2 -> 1.833333333 | Z27: =((((L6+K15)/2)+2))*((SUM($Q$9:$Q$12)+6))-IF(J18<L6+2,J18*3,(L6+2)*3)-IF(L18<K15+2,L18*3,(K15+2)*3) -> 970 | AA27: =IF(O3="y",Y27*Z27-1*(Q9+Q10+Q11+Q12+2),Y27*Z27) -> 1736.333333 | AB27: =AA27*140/2000 -> 121.5433333
F28: Pannel Quantities: | X28: A2 | Y28: =(Z23+AA23)/2 -> 1.5 | Z28: =(((M6+M15)/2)-2)*(SUM(Q10:Q11)+4) -> 540 | AA28: =Y28*Z28 -> 810 | AB28: =AA28*140/2000 -> 56.7
F29: Paved Shoulder | I29: =+F47 -> 35.55555556 | J29: =O47 -> 35.55555556 | K29: =I29+J29 -> 71.11111111 | L29: yd2 | O29: - User Input | X29: A3 | Y29: =(AA23+AB23)/2 -> 1.166666667 | Z29: =((N6+N15)/2)*(SUM(Q10:Q11)+4) -> 600 | AA29: =Y29*Z29 -> 700 | AB29: =AA29*140/2000 -> 49
F30: Modified Subbase | I30: =D47 -> 33.6 | J30: =M47 -> 33.6 | K30: =I30+J30 -> 67.2 | L30: Tons | O30: - Calculation (Locked) | X30: A4 | Y30: =(AB23+AC23)/2 -> 1 | Z30: =((O6+O15)/2)*(SUM(Q10:Q11)+4) -> 300 | AA30: =Y30*Z30 -> 300 | AB30: =AA30*140/2000 -> 21
A31: Tips for Use: | F31: Polymer Grid | I31: =F47 -> 35.55555556 | J31: =O47 -> 35.55555556 | K31: =I31+J31 -> 71.11111111 | L31: yd2 | Y31: Totals: | Z31: =SUM(Z27:Z30) -> 2410 | AA31: =SUM(AA27:AA30) -> 3546.333333 | AB31: =SUM(AB27:AB30) -> 248.2433333
A32: 1) Fill in dimensions in feet. | O32: - Non-Reinforced Section
A33: 2) Calculated quantities include 4" sloped curb. | T33: Slope: | U33: =(S20+T20+U20)/1 -> 60 | V33: :1
A34: 3) All values based on Standard Road Plan RK-20(1-3) | O34: - Single Reinforced Section
O36: - Double Reinforced Section
A39: Paved Shoulder Panels for Sod Flume or Bridge End Drain (See Standard Road Plans RF-38, RF-39, & RF-40 as well as Tabs 104-8 and 104-8A)
B40: Lt. Side | H40: 1Not a Bid Item | K40: Rt. Side
B41: Req'd Panel | C41: Y/N | D41: 1Modified Subbase(Ton) | F41: 1Polymer Grid (yd2) | K41: Req'd Panel | L41: Y/N | M41: 1Modified Subbase(Ton) | O41: 1Polymer Grid (Yd2)
B43: A | C43: Y | D43: =F43*Y13*9*140/2000 -> 14.7 | F43: =IF($C$43="y",(E6)*(A9+3-2)-IF(I18<F6+2,0,IF(I18<SUM(E6:G6),(I18-(F6+2))*3,E6*3)),0)/9 -> 15.55555556 | K43: A | L43: Y | M43: =O43*Y28*9*140/2000 -> 18.9 | O43: =IF($L$43="y",M15*(Q12+3-2)-IF(L18<K15+2,0,IF(L18<(K15+M15),(L18-(K15+2))*3,M15*3)),0)/9 -> 20
B44: B | C44: Y | D44: =F44*Y13*9*140/2000 -> 18.9 | F44: =IF($C$44="y",(E15)*(A12+3-2)-IF(K18<F15+2,0,IF(K18<(SUM(E15:F15)+2),(K18-(F15+2))*3,E15*3)),0)/9 -> 20 | K44: B | L44: Y | M44: =O44*Y28*9*140/2000 -> 14.7 | O44: =IF($L$44="y",M6*(Q9+3-2)-IF(J18<L6+2,0,IF(J18<SUM(L6:M6),(J18-(L6+2))*3,M6*3)),0)/9 -> 15.55555556
B45: C | D45: =F45*Y14*9*140/2000 -> 0 | F45: =IF($C$45="y",(A12+3-2)*D15-IF(K18<SUM(E15:F15)+2,0,(K18-(SUM(E15:F15)+2))*3),0)/9 -> 0 | K45: C | M45: =O45*Y29*9*140/2000 -> 0 | O45: =IF($L$45="y",N6*(Q9+1)-IF(J18<SUM(L6:M6)+2,0,(J18-(SUM(L6:M6)+2))*3),0)/9 -> 0
B46: D | D46: =F46*Y14*9*140/2000 -> 0 | F46: =IF($C$46="y",D6*(A9+3-2)-IF(I18<SUM(E6:F6)+2,0,(I18-(SUM(E6:F6)+2))*3),0)/9 -> 0 | K46: D | M46: =O46*Y29*9*140/2000 -> 0 | O46: =IF($L$46="y",N15*(Q12+3-2)-IF(L18<(M15+K15)+2,0,(L18-(SUM(K15:M15)+2))*3),0)/9 -> 0
B47: Total: | D47: =SUM(D43:E46) -> 33.6 | F47: =SUM(F43:G46) -> 35.55555556 | K47: Total: | M47: =SUM(M43:N46) -> 33.6 | O47: =SUM(O43:P46) -> 35.55555556
B48: B+C= | D48: =+D44+D45 -> 18.9 | F48: =+F44+F45 -> 20 | K48: B+C= | M48: =+M44+M45 -> 14.7 | O48: =+O44+O45 -> 15.55555556
B49: A+D= | D49: =+D43+D46 -> 14.7 | F49: =+F43+F46 -> 15.55555556 | K49: A+D= | M49: =+M43+M46 -> 18.9 | O49: =+O43+O46 -> 20
H50: Panel | I50: Area (yd2) | S50: Begin Bridge Approach Station | U50: =U51-I22 -> 49245 | W50: Subdrain Outlet Location | Z50: 4" Subdrain | AB50: Porous Backfill
I51: Lt. Side | J51: Rt. Side | S51: Begin Bridge Station | U51: =49316.5-1.5 -> 49315 | W51: =+U51-(ABS(F15-F6)*(SUM(A11:A12)/SUM(A9:A12))+F15)-SUM(D15:E15) -> 49255 | Z51: =ROUNDUP(SUM(A10:A12)+(2.75*6)+((3/12)*6)+(IF($C$43="y",+A9,0)+10),0) -> 68 | AA51: =ROUNDUP(SUM(#REF!)+(2.75*6)+((3/12)*6)+10,0) ->  | AB51: =ROUNDUP((2.667*Z51)*120/2000,0) -> 11
H52: A | I52: =IF($C$43="y",((E6*(A9+1)-IF(I18<F6,0,IF(I18<(E6+F6),(I18-F6)*1,E6*1)))/9),0) -> 15.55555556 | J52: =IF(L43="y",((M15*(Q12+1)-IF(L18<K15,0,IF(L18<(M15+K15),(L18-K15)*1,M15*1)))/9),0) -> 20 | S52: End Bridge Station | U52: =49446.5+1.5 -> 49448 | W52: =+U52+(ABS(K15-L6)*(SUM(Q9:Q10)/SUM(Q9:Q12))+L6)+SUM(M6:N6) -> 49508 | Z52: =ROUNDUP(SUM(Q10:Q12)+(2.75*6)+((3/12)*6)+(IF($L$43="y",+Q9,0)+10),0) -> 68 | AA52: =ROUNDUP(SUM(#REF!)+(2.75*6)+((3/12)*6)+10,0) ->  | AB52: =ROUNDUP((2.667*Z52)*120/2000,0) -> 11
E53: B+C= | F53: =+I53+I54 -> 20 | H53: B | I53: =IF($C$44="y",(E15*(A12+1)-IF(K18<F15,0,IF(K18<(E15+F15),(K18-F15)*1,E15*1)))/9,0) -> 20 | J53: =IF(L44="y",(M6*(Q9+1)-IF(J18<L6,0,IF(J18<(M6+L6),(J18-L6)*1,M6*1)))/9,0) -> 15.55555556 | K53: B+C= | L53: =+J53+J54 -> 15.55555556 | S53: End Bridge Approach Station | U53: =U52+J22 -> 49518
E54: A+D= | F54: =+I52+I55 -> 15.55555556 | H54: C | I54: =IF($C$45="y",(((A12+1)*D15-IF(K18<(E15+F15),0,K18-SUM(E15:F15)))/9),0) -> 0 | J54: =IF(L45="y",(((Q9+1)*N6-IF(J18<(M6+L6),0,J18-SUM(L6:M6)))/9),0) -> 0 | K54: A+D= | L54: =+J52+J55 -> 20
H55: D | I55: =IF($C$46="y",(D6*(1+A9)-IF(I18<(E6+F6),0,I18-(E6+F6)))/9,0) -> 0 | J55: =IF(L46="y",(N15*(1+Q12)-IF(L18<(M15+K15),0,L18-(M15+K15)))/9,0) -> 0 | S55: Longitudinal Grooving
H56: Total: | I56: =SUM(I52:I55) -> 35.55555556 | J56: =SUM(J52:J55) -> 35.55555556 | S56: Begin Bridge Approach | U56: =SUM(I23:I25) -> 236.2222222
S57: Bridge | W57: Quantity generated by Bridge Design and shown on TS&L. Face-to-Face of Backwall or Face-to-Face of Paving Notch (equivalent).
S58: End Bridge Approach | U58: =SUM(J23:J25) -> 236.2222222
S59: Total | U59: =SUM(U56:V58) -> 472.4444444
